bitfinex/quotes_SOLUSD_20241029
["timestamp","ask_amount","ask_price","bid_price","bid_amount"]
[1730221293571,43.05667144,182.38,182.37,13.7083]
[1730221293939,33.77497233,182.42,182.37,13.8083]
[1730221294143,33.77497233,182.43,182.39,0.1]
[1730221294339,33.77497233,182.4,182.37,13.8083]
[1730221294540,33.77497233,182.38,182.37,13.7083]
[1730221295668,33.77497233,182.38,182.36,0.1]
[1730221297858,0.10765596,182.37,182.36,0.1]
[1730221299150,33.88262829,182.37,182.36,0.1]
[1730221299358,33.88262829,182.37,182.33,13.7114]
[1730221299669,0.10765596,182.37,182.34,0.1]
[1730221299853,0.10765596,182.37,182.33,13.7114]
[1730221299854,33.77497233,182.35,182.33,13.8114]
[1730221300049,0.10765596,182.37,182.33,13.8114]
[1730221300050,33.77497233,182.34,182.33,13.8114]
[1730221300359,33.77497233,182.34,182.33,13.7114]
[1730221300948,33.77497233,182.36,182.33,19.2959]
[1730221301566,33.77497233,182.35,182.33,19.2959]
[1730221301767,33.77497233,182.35,182.33,19.1959]
[1730221302074,33.77497233,182.36,182.33,19.2959]
[1730221302292,33.77497233,182.35,182.33,19.1959]
[1730221302574,20.79730162,182.35,182.33,19.2959]
[1730221302777,0.10765596,182.37,182.36,0.1]
[1730221304654,0.10765596,182.37,182.36,5.5836]
[1730221305255,0.10765596,182.37,182.36,26.38090162]
[1730221305458,20.90495758,182.37,182.36,5.5836]
[1730221306356,0.10765596,182.37,182.36,5.5836]
[1730221307872,20.90495758,182.37,182.36,5.4836]
[1730221310078,20.90495758,182.37,182.35,13.7095]
[1730221310256,20.79730162,182.36,182.35,13.7095]
[1730221310655,41.59460324,182.36,182.31,19.1979]
[1730221310879,20.79730162,182.32,182.31,19.1979]
[1730221311862,20.79730162,182.33,182.31,19.1979]
[1730221312167,20.79730162,182.34,182.32,0.1]
[1730221312389,20.79730162,182.33,182.3,0.1]
[1730221312699,20.79730162,182.32,182.29,0.1]
[1730221313191,20.79730162,182.32,182.3,0.1]
[1730221313873,0.10765596,182.37,182.29,0.1]
[1730221313874,20.79730162,182.31,182.29,0.1]
[1730221314072,20.79730162,182.3,182.28,13.8151]
[1730221314701,20.79730162,182.33,182.3,0.1]
[1730221314996,20.79730162,182.33,182.32,0.1]
[1730221315382,20.79730162,182.34,182.32,0.1]
[1730221316101,20.90495758,182.37,182.34,0.1]
[1730221317072,20.90495758,182.37,182.35,19.1937]
[1730221317274,20.79730162,182.37,182.35,19.1937]
[1730221317784,20.90705534,182.36,182.35,19.1937]
[1730221318598,20.90705534,182.36,182.31,19.1973]
[1730221318805,20.79730162,182.32,182.31,13.7122]
[1730221319108,20.79730162,182.32,182.31,19.1973]
[1730221321112,20.90705534,182.36,182.32,0.1]
[1730221322193,20.79730162,182.34,182.32,0.1]
[1730221322388,0.10975372,182.36,182.32,0.1]
[1730221322592,5.372e-05,182.36,182.35,20.89730162]
[1730221322805,5.372e-05,182.36,182.35,0.1]
[1730221322979,5.372e-05,182.36,182.35,26.38120162]
[1730221324990,3.732e-05,182.38,182.35,70.15808562]
[1730221325198,3.732e-05,182.38,182.37,64.77418562]
[1730221325585,3.732e-05,182.38,182.37,40.99730162]
[1730221325787,3.732e-05,182.38,182.37,40.89730162]
[1730221326003,3.732e-05,182.38,182.37,20.89730162]
[1730221326403,3.732e-05,182.38,182.37,0.1]
[1730221326998,3.732e-05,182.38,182.37,26.38060162]
[1730221328301,3.732e-05,182.38,182.37,5.5833]
[1730221328812,3.732e-05,182.38,182.37,26.38060162]
[1730221329492,3.732e-05,182.38,182.37,5.5833]
[1730221330906,3.732e-05,182.38,182.37,26.38060162]
[1730221332299,3.732e-05,182.38,182.37,5.5833]
[1730221333696,3.732e-05,182.38,182.37,26.38060162]
[1730221334896,3.732e-05,182.38,182.37,46.48060162]
[1730221335593,3.732e-05,182.38,182.37,46.38060162]
[1730221336001,3.732e-05,182.38,182.37,26.38060162]
[1730221337018,3.732e-05,182.38,182.37,70.25748562]
[1730221337193,0.1,182.51,182.37,70.25748562]
[1730221337513,0.1,182.51,182.43,20.79730162]
[1730221337892,0.10822242,182.44,182.43,20.79730162]
[1730221338196,0.10822242,182.44,182.43,20.89730162]
[1730221338396,0.10822242,182.44,182.43,26.37880162]
[1730221338801,0.10822242,182.44,182.43,5.5815]
[1730221341619,0.10822242,182.44,182.43,26.37880162]
[1730221341791,0.10822242,182.44,182.43,67.17610324]
[1730221341993,0.11376435,182.45,182.44,43.976884]
[1730221341994,8.677e-05,182.45,182.44,43.976884]
[1730221342200,7.299e-05,182.47,182.46,0.2]
[1730221342419,0.10852055,182.48,182.47,0.1]
[1730221342607,2.913e-05,182.49,182.48,0.1]
[1730221342811,2.913e-05,182.49,182.48,0.2]
[1730221343117,2.913e-05,182.49,182.48,64.77418562]
[1730221343303,2.913e-05,182.49,182.48,64.67418562]
[1730221343508,2.913e-05,182.49,182.48,70.25418562]
[1730221348419,4.311e-05,182.53,182.52,0.1]
[1730221348659,4.311e-05,182.53,182.52,85.57148724]
[1730221348811,4.311e-05,182.53,182.52,40.89730162]
[1730221349211,4.311e-05,182.53,182.52,25.5788]
[1730221349712,4.311e-05,182.53,182.52,5.5788]
[1730221350813,20.79734473,182.53,182.51,19.2766]
[1730221351021,20.79730162,182.52,182.51,19.2766]
[1730221351729,20.79734473,182.53,182.51,19.2766]
[1730221351916,4.311e-05,182.53,182.51,19.2766]
[1730221352107,20.79734473,182.53,182.51,19.2766]
[1730221352309,4.311e-05,182.53,182.51,19.2766]
[1730221353704,4.311e-05,182.53,182.52,0.1]
[1730221354813,4.311e-05,182.53,182.52,20.89730162]
[1730221355631,4.311e-05,182.53,182.52,26.37610162]
[1730221355826,4.311e-05,182.53,182.52,5.5788]
[1730221357439,20.79730162,182.56,182.52,19.2759]
[1730221357825,0.10907264,182.53,182.52,19.2759]
[1730221358832,0.10907264,182.53,182.52,40.07320162]
[1730221360513,0.10907264,182.53,182.52,19.2759]
[1730221361126,0.10907264,182.53,182.52,40.07320162]
[1730221361724,0.10907264,182.53,182.52,19.2759]
[1730221363330,0.10907264,182.53,182.52,13.6971]
[1730221363639,0.10907264,182.53,182.51,0.1]
[1730221363816,20.79730162,182.52,182.49,13.7992]
[1730221364025,20.79730162,182.5,182.48,0.1]
[1730221364444,20.79730162,182.5,182.47,5.5801]
[1730221364741,20.79730162,182.5,182.48,0.1]
[1730221364966,20.79730162,182.51,182.48,0.1]
[1730221365451,20.79730162,182.49,182.46,0.1]
[1730221365633,20.79730162,182.49,182.46,5.5805]
[1730221365949,20.79730162,182.48,182.46,0.1]
[1730221366248,20.79730162,182.49,182.46,0.1]
[1730221366538,20.79730162,182.48,182.46,0.1]
[1730221367040,20.79730162,182.49,182.46,0.1]
[1730221367540,44.57418562,182.5,182.46,0.1]
[1730221367846,0.10907264,182.53,182.5,0.1]
[1730221368442,20.90637426,182.53,182.5,0.1]
[1730221368749,20.90637426,182.53,182.49,19.279]
[1730221369336,20.79730162,182.52,182.49,19.279]
[1730221369644,26.50032593,182.52,182.49,19.279]
[1730221369839,20.79730162,182.51,182.49,19.179]
[1730221370218,5.70302431,182.52,182.49,13.6993]
[1730221370219,20.79730162,182.5,182.49,13.6993]
[1730221370836,5.70302431,182.52,182.49,13.6993]
[1730221371036,5.70302431,182.52,182.49,19.179]
[1730221371823,5.70302431,182.52,182.51,0.1]
[1730221372045,5.70302431,182.52,182.51,20.89730162]
[1730221372423,5.70302431,182.52,182.51,26.37640162]
[1730221372927,5.70302431,182.52,182.51,46.37640162]
[1730221373346,5.70302431,182.52,182.51,67.17370324]
[1730221373867,0.10907264,182.53,182.52,20.2]
[1730221374149,0.10907264,182.53,182.52,85.57148724]
[1730221374733,0.10907264,182.53,182.52,91.05028724]
[1730221377261,30.7719917,182.85,182.53,0.1]
[1730221377461,16.45,182.67,182.6,0.1]
[1730221377631,2.191224,182.68,182.6,0.1]
[1730221377836,0.1054055,182.61,182.6,0.1]
[1730221378144,0.1054055,182.61,182.6,20.89730162]
[1730221378836,0.1054055,182.61,182.6,40.89730162]
[1730221379545,0.1054055,182.61,182.6,46.37370162]
[1730221380347,0.1054055,182.61,182.6,67.17100324]
[1730221380561,0.1162355,182.62,182.61,0.1]
[1730221380861,0.11191569,182.65,182.64,23.976884]
[1730221381040,0.10543546,182.68,182.65,20.1]
[1730221381244,0.10543546,182.68,182.65,20.2]
[1730221381458,0.10543546,182.68,182.65,46.37220162]
[1730221381659,0.10543546,182.68,182.65,26.37220162]
[1730221381841,0.10543546,182.68,182.65,5.5749]
[1730221382041,0.10543546,182.68,182.65,0.1]
[1730221382042,20.90273708,182.68,182.65,0.1]
[1730221382242,0.10543546,182.68,182.65,20.89730162]
[1730221383367,0.10543546,182.68,182.65,64.67418562]
[1730221383546,0.10543546,182.68,182.66,64.77418562]
[1730221383751,0.10543546,182.68,182.67,0.2]
[1730221384049,0.10543546,182.68,182.67,64.77418562]
[1730221385260,0.10375575,182.7,182.68,43.876884]
[1730221385459,0.10375575,182.7,182.68,90.94548724]
[1730221385656,0.10375575,182.7,182.69,0.2]
[1730221385860,0.582962,182.8,182.79,0.1]
[1730221386063,0.582962,182.8,182.79,20.89730162]
[1730221386354,0.582962,182.8,182.79,0.1]
[1730221386558,0.582962,182.8,182.77,0.1]
[1730221386768,20.79730162,182.79,182.78,0.1]
[1730221387155,0.582962,182.8,182.79,0.1]
[1730221387954,0.582962,182.8,182.79,5.5707]
[1730221389575,21.38026362,182.8,182.78,0.1]
[1730221390153,0.582962,182.8,182.78,0.1]
[1730221390349,0.582962,182.8,182.79,0.1]
[1730221391470,0.582962,182.8,182.79,5.5707]
[1730221392865,0.582962,182.8,182.79,0.1]
[1730221393166,21.38026362,182.8,182.79,0.1]
[1730221393347,0.582962,182.8,182.79,5.5707]
[1730221393551,0.582962,182.8,182.79,46.36800162]
[1730221394565,0.582962,182.8,182.79,25.5707]
[1730221395269,0.582962,182.8,182.79,38.49948334]
[1730221398052,21.96708099,182.88,182.87,0.1]
[1730221398053,5.69538099,182.88,182.87,0.1]
[1730221398283,12.92878334,182.91,182.87,0.1]
[1730221398455,12.92878334,182.9,182.87,0.1]
[1730221398861,18.6225849,182.91,182.9,0.1]
[1730221399499,18.6225849,182.91,182.9,0.04525]
[1730221399986,5.69380156,182.91,182.9,0.04525]
[1730221400278,12.92878334,182.94,182.92,0.04525]
[1730221400483,12.92878334,182.94,182.93,0.04525]
[1730221400681,0.582881,182.98,182.85,20.0]
[1730221400682,12.92878334,182.96,182.95,0.04525]
[1730221400867,12.92878334,182.96,182.93,0.04525]
[1730221401070,11.7424507,182.98,182.92,0.04525]
[1730221401272,12.92878334,182.93,182.92,0.04525]
[1730221401985,23.776884,182.92,182.88,0.04525]
[1730221402280,12.92878334,182.9,182.89,0.04525]
[1730221402480,5.4656,182.96,182.92,0.04525]
[1730221402883,0.1,182.94,182.86,0.04525]
[1730221403188,12.92878334,182.87,182.86,0.04525]
[1730221403369,12.92878334,182.87,182.83,19.1434]
[1730221403370,12.92878334,182.89,182.87,0.04525]
[1730221405469,12.92878334,182.89,182.88,0.04525]
[1730221406069,12.92878334,182.91,182.89,0.04525]
[1730221406395,12.92878334,182.91,182.9,0.04525]
[1730221408559,12.92878334,182.93,182.92,0.04525]
[1730221408967,12.92878334,182.94,182.92,0.04525]
[1730221409167,5.4654,182.97,182.94,0.04525]
[1730221410171,12.92878334,182.95,182.94,0.04525]
[1730221410867,12.92878334,182.97,182.96,0.04525]
[1730221411071,18.61997294,182.97,182.96,0.04525]
[1730221412070,31.54875628,182.97,182.94,0.04525]
[1730221412280,12.92878334,182.95,182.94,0.04525]
[1730221412971,5.6911896,182.97,182.96,0.04525]
[1730221413171,18.39408334,182.97,182.96,0.04525]
[1730221413697,12.92878334,182.97,182.96,0.04525]
[1730221414093,18.39408334,182.97,182.96,0.04525]
[1730221414873,12.92878334,182.97,182.96,0.04525]
[1730221415573,18.39408334,182.97,182.96,0.04525]
[1730221415987,12.92878334,182.97,182.96,0.04525]
[1730221416197,6.27366405,182.98,182.97,0.04525]
[1730221416482,18.97666434,182.98,182.94,0.04525]
[1730221416688,12.92878334,182.95,182.94,0.04525]
[1730221416884,12.92878334,182.96,182.94,0.04525]
[1730221417089,6.047881,182.98,182.94,0.04525]
[1730221417273,12.92878334,182.97,182.96,0.04525]
[1730221418318,6.048081,182.98,182.96,0.04525]
[1730221418319,18.97686434,182.98,182.96,0.04525]
[1730221419197,0.582881,182.98,182.97,0.04525]
[1730221421097,0.582881,182.98,182.97,12.97403334]
[1730221421298,0.582881,182.98,182.97,0.04525]
[1730221422419,8.1e-05,182.98,182.97,12.97403334]
[1730221422719,8.1e-05,182.98,182.97,56.75091734]
[1730221423228,8.1e-05,182.98,182.97,38.43933334]
[1730221424101,8.1e-05,182.98,182.97,18.43933334]
[1730221425020,8.1e-05,182.98,182.97,5.51055]
[1730221425198,8.1e-05,182.98,182.97,62.41621734]
[1730221426509,8.1e-05,182.98,182.97,5.51055]
[1730221426709,12.92886434,182.98,182.97,5.51055]
[1730221428421,12.92886434,182.98,182.97,0.04525]
[1730221429098,25.85764768,182.98,182.88,6.6453]
[1730221429303,12.92878334,182.89,182.86,5.4686]
[1730221429504,12.92878334,182.89,182.86,19.1402]
[1730221429724,12.92878334,182.89,182.87,0.1]
[1730221429922,8.1e-05,182.98,182.88,13.12878334]
[1730221430127,8.1e-05,182.98,182.9,0.1]
[1730221430326,12.92878334,182.96,182.9,13.02878334]
[1730221430503,12.92878334,182.96,182.91,5.4671]
[1730221430924,12.92878334,182.96,182.92,23.776884]
[1730221431407,12.92878334,182.96,182.93,13.6664]
[1730221431820,12.92878334,182.95,182.93,13.6664]
[1730221432206,12.92878334,182.96,182.93,13.6664]
[1730221432529,8.1e-05,182.98,182.94,23.776884]
[1730221432850,8.1e-05,182.98,182.93,34.31810804]
[1730221432851,8.1e-05,182.98,182.96,23.776884]
[1730221433006,0.582881,183.16,182.98,26.4543]
[1730221433202,0.582881,183.16,183.02,0.1]
[1730221433409,5.46,183.15,183.04,5.4632]
[1730221433627,20.65170804,183.15,183.05,20.0]
[1730221433805,0.1,183.12,183.04,19.1214]
[1730221434007,0.1,183.14,182.98,6.4543]
[1730221434208,0.1,183.1,182.99,5.4647]
[1730221434511,0.1,183.1,182.99,19.1265]
[1730221434710,0.1,183.1,182.99,13.6618]
[1730221434924,0.1,183.1,182.97,11.97585109]
[1730221435233,20.65170804,182.98,182.97,31.97585109]
[1730221435410,20.65170804,182.98,182.97,45.63925109]
[1730221435734,20.65170804,182.98,182.97,39.1287]
[1730221436930,20.65170804,182.98,182.94,12.91155109]
[1730221437111,20.65170804,182.95,182.92,5.4668]
[1730221437317,20.65170804,182.93,182.92,5.4668]
[1730221437842,20.65170804,182.95,182.92,27.89459401]
[1730221438028,20.65170804,182.94,182.92,27.89459401]
[1730221438227,0.2,183.14,182.94,0.2]
[1730221438420,20.75170804,183.06,182.93,8.76069401]
[1730221438628,20.75170804,183.06,182.94,20.0]
[1730221438826,20.65170804,183.06,182.94,20.0]
[1730221439535,20.65170804,182.95,182.94,25.4662]
[1730221440725,20.65170804,182.95,182.93,13.6661]
[1730221441034,20.65170804,182.94,182.91,5.4668]
[1730221441234,22.9742,183.02,182.91,5.4668]
[1730221441235,16.2623,183.02,182.91,19.1347]
[1730221441426,20.65170804,182.95,182.92,0.1]
[1730221441931,20.65170804,182.93,182.92,0.1]
[1730221442132,0.1,183.11,182.95,0.1]
[1730221442436,20.65170804,182.96,182.95,0.1]
[1730221442629,20.65170804,182.96,182.95,5.4659]
[1730221442836,20.65170804,182.96,182.95,25.4659]
[1730221443914,20.65170804,182.96,182.95,25.5659]
[1730221444434,20.65170804,182.96,182.95,25.4659]
[1730221444639,20.65170804,182.96,182.95,25.5659]
[1730221445038,20.65170804,182.96,182.95,5.5659]
[1730221445540,20.65170804,182.96,182.95,5.4659]
[1730221446227,5.70005734,183.06,182.96,0.1]
[1730221446543,20.65170804,182.97,182.95,19.1308]
[1730221446726,20.65170804,182.96,182.95,13.6649]
[1730221446921,20.65170804,182.97,182.95,13.6649]
[1730221447222,26.35176538,183.06,182.95,13.6649]
[1730221447424,20.65170804,182.96,182.95,13.6649]
[1730221447830,20.65170804,182.96,182.94,5.4662]
[1730221447831,20.65170804,182.96,182.91,6.48717981]
[1730221448027,20.65170804,182.92,182.91,11.95427981]
[1730221448230,20.65170804,182.92,182.91,11.85427981]
[1730221448441,20.65170804,182.92,182.91,5.4671]
[1730221448632,20.65170804,182.92,182.91,19.135]
[1730221449146,20.65170804,182.92,182.91,19.235]
[1730221449441,20.65170804,182.93,182.91,43.111884]
[1730221449646,20.65170804,182.95,182.92,23.976884]
[1730221449838,20.65170804,182.94,182.92,23.976884]
[1730221450149,20.65170804,182.97,182.93,5.4665]
[1730221450652,20.65170804,182.94,182.93,5.4665]
[1730221450945,20.65170804,182.94,182.91,8.76069401]
[1730221451127,20.65170804,182.97,182.93,13.6664]
[1730221451532,20.65170804,182.94,182.93,13.6664]
[1730221453043,5.70005734,183.06,182.93,13.6664]
[1730221453248,34.04775734,183.06,182.93,27.073222]
[1730221453454,34.04775734,183.06,182.93,13.6664]
[1730221453628,20.65170804,182.94,182.93,13.6664]
[1730221454367,20.65170804,182.94,182.92,0.1]
[1730221454568,20.65170804,182.95,182.92,0.1]
[1730221454730,20.65170804,182.96,182.92,0.1]
[1730221454928,20.65170804,182.96,182.93,0.1]
[1730221455140,20.65170804,182.94,182.93,0.1]
[1730221455427,20.65170804,182.95,182.93,0.1]
[1730221455956,20.65170804,182.96,182.93,0.1]
[1730221456154,20.65170804,182.94,182.92,0.1]
[1730221456328,20.65170804,182.93,182.91,23.976884]
[1730221456652,20.65170804,182.94,182.92,0.1]
[1730221457025,20.65170804,182.95,182.93,0.1]
[1730221457246,20.65170804,182.94,182.93,23.876884]
[1730221457452,20.65170804,182.94,182.93,23.976884]
[1730221458431,20.65170804,182.94,182.93,5.5665]
[1730221460964,20.65170804,182.94,182.93,5.4665]
[1730221462437,12.91257376,182.94,182.93,5.4665]
[1730221464363,12.91257376,182.94,182.88,6.7526]
[1730221464364,25.82514752,182.94,182.82,0.2]
[1730221464527,12.91257376,182.83,182.81,6.6912]
[1730221464732,12.91257376,182.82,182.79,0.2]
[1730221464926,12.91257376,182.8,182.79,0.2]
[1730221465450,12.91257376,182.8,182.77,0.1]
[1730221465758,12.91257376,182.78,182.77,1.81912493]
[1730221466052,12.91257376,182.78,182.75,0.1]
[1730221466238,12.91257376,182.76,182.73,8.12797722]
[1730221466442,21.7434,182.85,182.74,5.4722]
[1730221467157,21.7434,182.85,182.75,0.1]
[1730221467458,21.7434,182.85,182.76,0.1]
[1730221467642,21.7434,182.85,182.77,19.1496]
[1730221468156,20.70394499,182.78,182.74,13.6806]
[1730221468347,20.70394499,182.75,182.71,5.4731]
[1730221468548,20.70394499,182.72,182.71,5.4731]
[1730221469650,20.70394499,182.72,182.71,19.1559]
[1730221470773,20.70394499,182.72,182.71,13.6828]
[1730221471055,41.40788998,182.72,182.67,13.6854]
[1730221471360,20.70394499,182.79,182.67,13.6854]
[1730221471361,20.70394499,182.68,182.67,13.6854]
[1730221471737,20.70394499,182.68,182.67,19.1597]
[1730221472056,20.70394499,182.69,182.67,19.1597]
[1730221472234,20.70394499,182.72,182.67,19.1597]
[1730221472437,20.70394499,182.71,182.68,7.82783118]
[1730221472647,20.70394499,182.73,182.68,7.92783118]
[1730221472855,20.70394499,182.73,182.7,20.0]
[1730221473233,20.70394499,182.71,182.7,20.0]
[1730221473556,20.70394499,182.72,182.7,20.0]
[1730221473931,20.70394499,182.73,182.7,20.0]
[1730221474127,20.70394499,182.74,182.7,20.0]
[1730221474334,20.70394499,182.73,182.7,20.0]
[1730221474663,20.70394499,182.76,182.7,40.70394499]
[1730221474843,20.70394499,182.76,182.72,20.0]
[1730221475152,20.70394499,182.75,182.72,20.0]
[1730221475357,20.70394499,182.74,182.72,20.0]
[1730221475559,20.70394499,182.75,182.72,20.0]
[1730221476859,20.70394499,182.76,182.74,20.0]
[1730221477151,20.70394499,182.79,182.74,20.0]
[1730221477352,20.70394499,182.78,182.74,20.0]
[1730221477567,20.70394499,182.75,182.74,20.0]
[1730221478144,20.70394499,182.76,182.74,20.0]
[1730221478362,20.70394499,182.78,182.74,20.0]
[1730221478558,27.45509813,182.85,182.74,20.0]
[1730221478559,20.70394499,182.77,182.74,20.0]
[1730221478768,20.70394499,182.78,182.74,20.0]
[1730221479150,20.70394499,182.76,182.75,13.6798]
[1730221479358,20.70394499,182.76,182.75,33.6798]
[1730221479558,20.70394499,182.76,182.69,26.17764499]
[1730221479745,20.70394499,182.74,182.69,26.17764499]
[1730221479950,20.70394499,182.79,182.69,26.17764499]
[1730221479951,20.70394499,182.75,182.69,26.17764499]
[1730221480265,20.70394499,182.74,182.69,26.17764499]
[1730221480469,20.70394499,182.75,182.71,13.6823]
[1730221480778,20.70394499,182.77,182.72,40.70394499]
[1730221480951,20.70394499,182.8,182.75,20.70394499]
[1730221481141,20.70394499,182.82,182.78,39.1486]
[1730221481656,20.70394499,182.83,182.78,59.85254499]
[1730221482239,20.70394499,182.82,182.78,39.1486]
[1730221482465,20.70394499,182.81,182.78,39.1486]
[1730221482772,20.70394499,182.82,182.78,39.1486]
[1730221483568,20.70394499,182.79,182.78,13.6776]
[1730221483770,20.70394499,182.79,182.77,20.0]
[1730221483948,20.70394499,182.78,182.77,20.0]
[1730221484150,20.70394499,182.78,182.74,13.6803]
[1730221484347,20.70394499,182.76,182.74,13.6803]
[1730221484562,20.70394499,182.77,182.74,13.6803]
[1730221485377,20.70394499,182.76,182.74,13.6803]
[1730221485671,20.70394499,182.76,182.75,20.0]
[1730221485878,20.70394499,182.76,182.73,20.0]
[1730221486081,20.70394499,182.74,182.73,20.0]
[1730221486374,20.70394499,182.76,182.73,20.0]
[1730221486780,12.93621334,182.76,182.73,20.0]
[1730221487152,12.93621334,182.75,182.73,20.0]
[1730221487354,12.93621334,182.75,182.73,25.4725]
[1730221487581,12.93621334,182.74,182.7,5.4734]
[1730221487782,12.93621334,182.74,182.7,19.157]
[1730221487958,12.93621334,182.73,182.7,19.157]
[1730221488157,12.93621334,182.74,182.7,19.157]
[1730221488378,12.93621334,182.77,182.71,12.93621334]
[1730221488558,12.93621334,182.76,182.71,12.93621334]
[1730221488761,12.93621334,182.75,182.71,20.0]
[1730221488977,12.93621334,182.73,182.7,19.157]
[1730221489179,12.93621334,182.71,182.68,7.30520254]
[1730221489376,12.93621334,182.72,182.68,1.83140254]
[1730221489677,12.93621334,182.73,182.68,26.62131334]
[1730221489975,12.93621334,182.75,182.69,12.93621334]
[1730221490181,12.93621334,182.76,182.72,20.0]
[1730221490478,12.93621334,182.75,182.71,20.0]
[1730221491256,12.93621334,182.74,182.73,20.0]
[1730221491474,12.93621334,182.75,182.73,20.0]
[1730221491693,23.776884,182.84,182.73,20.0]
[1730221491989,12.93621334,182.77,182.73,20.0]
[1730221492360,12.93621334,182.76,182.73,20.0]
[1730221492561,12.93621334,182.77,182.73,20.0]
[1730221492762,12.93621334,182.79,182.73,32.93621334]
[1730221493173,12.93621334,182.81,182.75,32.93621334]
[1730221493485,12.93621334,182.83,182.78,20.0]
[1730221493782,12.93621334,182.84,182.79,20.0]
[1730221493989,28.12971334,182.85,182.81,20.0]
[1730221494191,12.93621334,182.83,182.81,20.0]
[1730221494388,12.93621334,182.84,182.81,20.0]
[1730221494578,12.93621334,182.83,182.78,20.0]
[1730221495466,12.93621334,182.84,182.8,20.0]
[1730221495662,15.1935,182.85,182.8,32.93621334]
[1730221495886,12.93621334,182.88,182.83,20.0]
[1730221496268,12.93621334,182.87,182.83,20.0]
[1730221496468,12.93621334,182.88,182.83,20.0]
[1730221496671,12.93621334,182.87,182.82,20.0]
[1730221496879,12.93621334,182.86,182.82,20.0]
[1730221497182,6.5926,182.89,182.82,20.0]
[1730221497183,12.93621334,182.88,182.82,32.93621334]
[1730221497361,12.93621334,182.88,182.83,19.1434]
[1730221497561,12.79454891,182.88,182.84,20.0]
[1730221497771,12.93621334,182.87,182.84,20.0]
[1730221498264,12.93621334,182.88,182.84,20.0]
[1730221498462,12.93621334,182.89,182.84,32.93621334]
[1730221498892,12.93621334,182.89,182.84,20.0]
[1730221499392,12.93621334,182.89,182.84,32.93621334]
[1730221499565,12.93621334,182.89,182.86,20.0]
[1730221500268,12.93621334,182.9,182.86,20.0]
[1730221500669,12.93621334,182.87,182.86,20.0]
[1730221500985,12.93621334,182.87,182.85,13.6724]
[1730221501170,16.6379,182.91,182.85,13.6724]
[1730221501171,12.93621334,182.86,182.85,13.6724]
[1730221501374,12.93621334,182.89,182.85,39.1413]
[1730221501772,12.93621334,182.9,182.85,52.07751334]
[1730221502084,12.93621334,182.92,182.86,32.93621334]
[1730221502270,12.93621334,182.91,182.86,20.0]
[1730221502475,12.93621334,182.9,182.86,20.0]
[1730221502795,12.93621334,182.89,182.86,20.0]
[1730221502979,12.93621334,182.91,182.86,20.0]
[1730221503509,12.93621334,182.92,182.88,20.0]
[1730221503670,12.93621334,182.9,182.88,20.0]
[1730221503994,6.383,182.93,182.86,20.0]
[1730221503995,12.93621334,182.89,182.86,20.0]
[1730221504294,12.93621334,182.87,182.86,20.0]
[1730221504592,12.93621334,182.89,182.86,20.0]
[1730221504899,12.93621334,182.88,182.86,20.0]
[1730221505264,12.93621334,182.89,182.86,20.0]
[1730221505466,12.93621334,182.87,182.82,21.82474012]
[1730221505670,12.93621334,182.83,182.79,5.4707]
[1730221505972,12.93621334,182.88,182.79,5.4707]
[1730221505973,12.93621334,182.81,182.79,19.1475]
[1730221507180,12.93621334,182.8,182.79,13.6768]
[1730221507379,12.93621334,182.8,182.77,5.4712]
[1730221507569,12.93621334,182.79,182.77,5.4712]
[1730221508194,12.93621334,182.82,182.77,32.08571334]
[1730221508495,12.93621334,182.83,182.78,20.0]
[1730221508788,12.93621334,182.82,182.78,20.0]
[1730221509000,15.5772,182.86,182.77,13.6783]
[1730221509001,12.93621334,182.8,182.77,13.6783]
[1730221509171,12.93621334,182.78,182.75,1.90033732]
[1730221509494,12.93621334,182.79,182.75,19.1515]
[1730221510074,12.93621334,182.8,182.75,19.1515]
[1730221510694,12.93621334,182.79,182.75,19.1515]
[1730221511196,12.93621334,182.79,182.75,13.6798]
[1730221511394,12.93621334,182.76,182.72,5.4726]
[1730221511693,12.93621334,182.73,182.66,13.6861]
[1730221512000,12.93621334,182.7,182.66,13.6861]
[1730221512297,12.93621334,182.7,182.66,15.52100932]
[1730221512470,12.93621334,182.68,182.66,13.6861]
[1730221512676,12.93621334,182.72,182.66,26.62231334]